[Event "*** SCC Grand Prix: Titled Tuesday Blitz"]
[Site "Chess.com"]
[Date "2020.06.09"]
[Round "5"]
[White "Jumbo"]
[Black "Bayernbk"]
[Result "1-0"]
[WhiteElo "2816"]
[BlackElo "2465"]
[TimeControl "180+1"]
[EndTime "9:57:33 PDT"]
[Termination "Jumbo won by resignation"]

1. e4 {[%clk 0:03:00.9]} 1... e6 {[%clk 0:02:59.6]} 2. d3 {[%clk 0:02:58.9]}
2... d5 {[%clk 0:03:00.1]} 3. Nd2 {[%clk 0:02:57.3]} 3... c5 {[%clk 0:03:00.2]}
4. Ngf3 {[%clk 0:02:57.2]} 4... g6 {[%clk 0:02:57.7]} 5. g3 {[%clk 0:02:54.6]}
5... Bg7 {[%clk 0:02:57.5]} 6. Bg2 {[%clk 0:02:55.2]} 6... Ne7 {[%clk
0:02:58.1]} 7. O-O {[%clk 0:02:55.7]} 7... b6 {[%clk 0:02:58.5]} 8. Re1 {[%clk
0:02:55.8]} 8... Bb7 {[%clk 0:02:56.3]} 9. e5 {[%clk 0:02:55.9]} 9... Nbc6
{[%clk 0:02:54.1]} 10. Nf1 {[%clk 0:02:54.8]} 10... h6 {[%clk 0:02:52.4]} 11. h4
{[%clk 0:02:54.5]} 11... Qc7 {[%clk 0:02:49.6]} 12. Bf4 {[%clk 0:02:50.9]} 12...
g5 {[%clk 0:02:47.5]} 13. hxg5 {[%clk 0:02:50.2]} 13... hxg5 {[%clk 0:02:48.4]}
14. Bxg5 {[%clk 0:02:15.1]} 14... Nxe5 {[%clk 0:02:43.9]} 15. N1h2 {[%clk
0:02:14.5]} 15... Nf5 {[%clk 0:01:57.2]} 16. c3 {[%clk 0:02:05]} 16... f6 {[%clk
0:01:32.4]} 17. Bf4 {[%clk 0:01:41.1]} 17... O-O-O {[%clk 0:01:29.5]} 18. d4
{[%clk 0:01:35]} 18... Nxf3+ {[%clk 0:01:27.7]} 19. Qxf3 {[%clk 0:01:20.8]}
19... Qd7 {[%clk 0:01:24.1]} 20. a4 {[%clk 0:01:15.9]} 20... Bh6 {[%clk
0:01:12.7]} 21. a5 {[%clk 0:01:11.2]} 21... Bxf4 {[%clk 0:01:07.6]} 22. Qxf4
{[%clk 0:01:12.1]} 22... Qd6 {[%clk 0:01:08.1]} 23. Qd2 {[%clk 0:00:52.4]} 23...
Rdg8 {[%clk 0:00:53.1]} 24. axb6 {[%clk 0:00:49.2]} 24... axb6 {[%clk
0:00:48.1]} 25. Qe2 {[%clk 0:00:31.3]} 25... cxd4 {[%clk 0:00:35.8]} 26. Qxe6+
{[%clk 0:00:30.5]} 26... Qxe6 {[%clk 0:00:36.7]} 27. Rxe6 {[%clk 0:00:30.7]}
27... dxc3 {[%clk 0:00:28.3]} 28. Rxb6 {[%clk 0:00:23.7]} 28... c2 {[%clk
0:00:23.9]} 29. Rc1 {[%clk 0:00:14.7]} 29... Nd4 {[%clk 0:00:23.9]} 30. Bf1
{[%clk 0:00:15.1]} 30... Rh4 {[%clk 0:00:10.3]} 31. Kg2 {[%clk 0:00:13.5]} 31...
Kc7 {[%clk 0:00:06.7]} 32. Rb4 {[%clk 0:00:12.7]} 32... Rxh2+ {[%clk 0:00:04.1]}
33. Kxh2 {[%clk 0:00:11.4]} 33... Nf3+ {[%clk 0:00:04.8]} 34. Kg2 {[%clk
0:00:11.3]} 34... d4 {[%clk 0:00:05.4]} 35. Rxc2+ {[%clk 0:00:11.4]} 35... Kd6
{[%clk 0:00:04.8]} 36. Rxb7 {[%clk 0:00:11.7]} 36... Ne1+ {[%clk 0:00:04.5]} 37.
Kg1 {[%clk 0:00:12.2]} 37... Nxc2 {[%clk 0:00:05.2]} 38. Bc4 {[%clk 0:00:10.3]}
38... Rc8 {[%clk 0:00:02.9]} 39. b3 {[%clk 0:00:10.5]} 39... Na3 {[%clk
0:00:02.9]} 40. Bd3 {[%clk 0:00:09.9]} 40... Nc2 {[%clk 0:00:02.4]} 41. Kf1
{[%clk 0:00:09.1]} 41... Na1 {[%clk 0:00:01.6]} 42. Bc4 {[%clk 0:00:08.3]} 42...
Ke5 {[%clk 0:00:01.6]} 43. Ke2 {[%clk 0:00:08.6]} 43... Kf5 {[%clk 0:00:01.8]}
44. Kd3 {[%clk 0:00:08.5]} 44... Kg4 {[%clk 0:00:02.2]} 45. Kxd4 {[%clk
0:00:08.3]} 45... Kf3 {[%clk 0:00:02.3]} 46. Kc3 {[%clk 0:00:08.7]} 46... Kxf2
{[%clk 0:00:02.5]} 47. g4 {[%clk 0:00:09.3]} 47... Kg3 {[%clk 0:00:02.5]} 48.
Rg7 {[%clk 0:00:09.7]} 48... Rc5 {[%clk 0:00:02.3]} 49. Kb2 {[%clk 0:00:10.1]}
49... Nxb3 {[%clk 0:00:02.8]} 50. Bxb3 {[%clk 0:00:10.1]} 50... Re5 {[%clk
0:00:02]} 51. Bc2 {[%clk 0:00:09.8]} 51... Rd5 {[%clk 0:00:01.6]} 52. Bf5 {[%clk
0:00:10.1]} 52... Rd4 {[%clk 0:00:02.2]} 53. Kc3 {[%clk 0:00:10.6]} 53... Kf4
{[%clk 0:00:03.1]} 54. Kxd4 {[%clk 0:00:10.7]} 1-0

[Event "*** SCC Grand Prix: Titled Tuesday Blitz"]
[Site "Chess.com"]
[Date "2020.06.09"]
[Round "5"]
[White "Nastya_Rakhmangulova"]
[Black "Love_craft"]
[Result "0-1"]
[WhiteElo "2268"]
[BlackElo "2432"]
[TimeControl "180+1"]
[EndTime "9:57:34 PDT"]
[Termination "Love_craft won by resignation"]

1. e4 {[%clk 0:03:00.9]} 1... g6 {[%clk 0:02:58.8]} 2. d4 {[%clk 0:03:00.3]}
2... Bg7 {[%clk 0:02:58.8]} 3. Nf3 {[%clk 0:02:58.8]} 3... d6 {[%clk 0:02:59.2]}
4. Bc4 {[%clk 0:02:57.4]} 4... Nf6 {[%clk 0:02:58.6]} 5. Qe2 {[%clk 0:02:56.8]}
5... c6 {[%clk 0:02:50.8]} 6. Bb3 {[%clk 0:02:50.6]} 6... O-O {[%clk 0:02:49.9]}
7. Nc3 {[%clk 0:02:50.4]} 7... b5 {[%clk 0:02:44.1]} 8. e5 {[%clk 0:02:39.7]}
8... Ne8 {[%clk 0:02:43.7]} 9. Bg5 {[%clk 0:02:23.1]} 9... d5 {[%clk 0:02:37.8]}
10. h4 {[%clk 0:02:12]} 10... a5 {[%clk 0:02:22.4]} 11. a4 {[%clk 0:02:10.2]}
11... b4 {[%clk 0:02:22]} 12. Na2 {[%clk 0:02:10.4]} 12... f6 {[%clk 0:01:27.2]}
13. Be3 {[%clk 0:01:48.9]} 13... Bg4 {[%clk 0:01:23.3]} 14. Qd2 {[%clk
0:01:20.7]} 14... Bxf3 {[%clk 0:00:58.6]} 15. gxf3 {[%clk 0:01:21.6]} 15... fxe5
{[%clk 0:00:59.2]} 16. dxe5 {[%clk 0:01:21.2]} 16... Bxe5 {[%clk 0:00:52.6]} 17.
O-O-O {[%clk 0:01:20.9]} 17... e6 {[%clk 0:00:36]} 18. h5 {[%clk 0:01:19.1]}
18... Qf6 {[%clk 0:00:34.1]} 19. hxg6 {[%clk 0:00:51.4]} 19... hxg6 {[%clk
0:00:31.5]} 20. Kb1 {[%clk 0:00:44.3]} 20... Nd7 {[%clk 0:00:22.9]} 21. Bg5
{[%clk 0:00:42.8]} 21... Bf4 {[%clk 0:00:15.3]} 22. Bxf4 {[%clk 0:00:36.6]}
22... Qxf4 {[%clk 0:00:16.2]} 23. Qd3 {[%clk 0:00:37.5]} 23... Qf5 {[%clk
0:00:15.7]} 24. Qd4 {[%clk 0:00:36.1]} 24... Qf6 {[%clk 0:00:10.3]} 25. Qg4
{[%clk 0:00:30.3]} 25... Rf7 {[%clk 0:00:07.7]} 26. Rdg1 {[%clk 0:00:28.9]}
26... Rg7 {[%clk 0:00:07.8]} 27. Qh3 {[%clk 0:00:27.8]} 27... c5 {[%clk
0:00:07.2]} 28. Nc1 {[%clk 0:00:25]} 28... c4 {[%clk 0:00:06.9]} 29. Ba2 {[%clk
0:00:25.5]} 29... Nc7 {[%clk 0:00:06.1]} 30. Ne2 {[%clk 0:00:24.9]} 30... Kf7
{[%clk 0:00:05.6]} 31. f4 {[%clk 0:00:22.6]} 31... Rf8 {[%clk 0:00:04.8]} 32.
Qe3 {[%clk 0:00:19.1]} 32... Na6 {[%clk 0:00:04.4]} 33. Qa7 {[%clk 0:00:18.7]}
33... Nc5 {[%clk 0:00:04.4]} 34. Qxa5 {[%clk 0:00:15.7]} 34... b3 {[%clk
0:00:04]} 35. cxb3 {[%clk 0:00:09.9]} 35... cxb3 {[%clk 0:00:04.9]} 36. Nc3
{[%clk 0:00:09.9]} 36... bxa2+ {[%clk 0:00:05.1]} 37. Kxa2 {[%clk 0:00:09.8]}
37... Kg8 {[%clk 0:00:03.4]} 38. Rh2 {[%clk 0:00:09]} 38... Ne4 {[%clk
0:00:03.6]} 39. Rgh1 {[%clk 0:00:09.1]} 39... Nxc3+ {[%clk 0:00:03.4]} 40. bxc3
{[%clk 0:00:10]} 40... Kf7 {[%clk 0:00:03.6]} 41. Qc7 {[%clk 0:00:09.3]} 41...
Qe7 {[%clk 0:00:04]} 42. Rh7 {[%clk 0:00:08.1]} 42... Rg8 {[%clk 0:00:02.1]} 43.
Qa7 {[%clk 0:00:06.4]} 43... Nf6 {[%clk 0:00:02.2]} 44. Qd4 {[%clk 0:00:06.5]}
44... Rxh7 {[%clk 0:00:02.4]} 45. Rg1 {[%clk 0:00:06.3]} 45... Rhg7 {[%clk
0:00:02.6]} 46. Re1 {[%clk 0:00:05.5]} 46... Rf8 {[%clk 0:00:03.1]} 47. f5
{[%clk 0:00:05.4]} 47... gxf5 {[%clk 0:00:02.7]} 48. a5 {[%clk 0:00:06.3]} 48...
Kg8 {[%clk 0:00:03.1]} 49. a6 {[%clk 0:00:06.8]} 49... Ne4 {[%clk 0:00:03.7]}
50. Rb1 {[%clk 0:00:06.2]} 50... Qa7 {[%clk 0:00:04.2]} 51. Kb2 {[%clk
0:00:04.8]} 51... Qxd4 {[%clk 0:00:03.5]} 52. cxd4 {[%clk 0:00:05.7]} 52... Rb8+
{[%clk 0:00:03.9]} 53. Kc1 {[%clk 0:00:05.7]} 53... Rxb1+ {[%clk 0:00:04.8]} 0-1

[Event "*** SCC Grand Prix: Titled Tuesday Blitz"]
[Site "Chess.com"]
[Date "2020.06.09"]
[Round "5"]
[White "Nara_Kh"]
[Black "Margarita2907"]
[Result "0-1"]
[WhiteElo "2277"]
[BlackElo "2054"]
[TimeControl "180+1"]
[EndTime "9:57:39 PDT"]
[Termination "Margarita2907 won by checkmate"]

1. e4 {[%clk 0:03:00.9]} 1... c5 {[%clk 0:02:59.1]} 2. Be2 {[%clk 0:02:53.6]}
2... d6 {[%clk 0:02:56.2]} 3. f4 {[%clk 0:02:53]} 3... g6 {[%clk 0:02:53.9]} 4.
Nf3 {[%clk 0:02:52.7]} 4... Bg7 {[%clk 0:02:53.2]} 5. O-O {[%clk 0:02:52.4]}
5... e6 {[%clk 0:02:52.5]} 6. d4 {[%clk 0:02:49.1]} 6... cxd4 {[%clk 0:02:51]}
7. Na3 {[%clk 0:02:38.6]} 7... Nc6 {[%clk 0:02:47.7]} 8. Kh1 {[%clk 0:02:35.4]}
8... a6 {[%clk 0:02:43.4]} 9. Bc4 {[%clk 0:02:17.7]} 9... Nge7 {[%clk
0:02:37.8]} 10. Ng5 {[%clk 0:02:16.9]} 10... O-O {[%clk 0:02:26.1]} 11. Qg4
{[%clk 0:02:10.7]} 11... h6 {[%clk 0:02:16.1]} 12. Nf3 {[%clk 0:02:04.3]} 12...
d5 {[%clk 0:02:05.5]} 13. Bb3 {[%clk 0:01:44.3]} 13... dxe4 {[%clk 0:02:02.2]}
14. Ne5 {[%clk 0:01:44.3]} 14... Nxe5 {[%clk 0:01:51.3]} 15. fxe5 {[%clk
0:01:44.3]} 15... e3 {[%clk 0:01:44.8]} 16. Nc4 {[%clk 0:01:38.8]} 16... b5
{[%clk 0:01:25.7]} 17. Nd6 {[%clk 0:01:38.8]} 17... Bxe5 {[%clk 0:01:22.6]} 18.
Nxf7 {[%clk 0:01:21.5]} 18... Rxf7 {[%clk 0:01:12.1]} 19. Rxf7 {[%clk
0:01:21.2]} 19... Kxf7 {[%clk 0:01:06.2]} 20. Qf3+ {[%clk 0:01:13]} 20... Kg7
{[%clk 0:00:51.1]} 21. Qxa8 {[%clk 0:01:11.2]} 21... Qf8 {[%clk 0:00:33.4]} 22.
Qf3 {[%clk 0:01:03.8]} 22... Qxf3 {[%clk 0:00:31.9]} 23. gxf3 {[%clk 0:01:03.3]}
23... Nf5 {[%clk 0:00:22.3]} 24. c3 {[%clk 0:00:24.3]} 24... d3 {[%clk
0:00:21.3]} 25. Bxe3 {[%clk 0:00:21]} 25... Nxe3 {[%clk 0:00:20.5]} 26. Kg1
{[%clk 0:00:21.4]} 26... d2 {[%clk 0:00:18.4]} 27. Kf2 {[%clk 0:00:21.7]} 27...
Nc4 {[%clk 0:00:17.6]} 28. Bxc4 {[%clk 0:00:21]} 28... bxc4 {[%clk 0:00:18.5]}
29. Rd1 {[%clk 0:00:21.4]} 29... Bf4 {[%clk 0:00:18.6]} 30. h3 {[%clk
0:00:21.6]} 30... e5 {[%clk 0:00:17.6]} 31. Ke2 {[%clk 0:00:21.9]} 31... Kf6
{[%clk 0:00:17.6]} 32. b3 {[%clk 0:00:22.2]} 32... cxb3 {[%clk 0:00:16.6]} 33.
axb3 {[%clk 0:00:23.1]} 33... Bxh3 {[%clk 0:00:16.8]} 34. c4 {[%clk 0:00:22.6]}
34... Bd7 {[%clk 0:00:16.1]} 35. Rh1 {[%clk 0:00:22.4]} 35... h5 {[%clk
0:00:15.9]} 36. Ra1 {[%clk 0:00:22.2]} 36... Bc8 {[%clk 0:00:14.1]} 37. c5
{[%clk 0:00:22.1]} 37... Ke6 {[%clk 0:00:13.6]} 38. b4 {[%clk 0:00:22.5]} 38...
Kd5 {[%clk 0:00:13.6]} 39. Rg1 {[%clk 0:00:22.7]} 39... Bf5 {[%clk 0:00:11.8]}
40. Ra1 {[%clk 0:00:22.6]} 40... Bd7 {[%clk 0:00:10.8]} 41. Kd1 {[%clk 0:00:21]}
41... Bb5 {[%clk 0:00:09.5]} 42. Ra3 {[%clk 0:00:19.2]} 42... Kc4 {[%clk
0:00:09.2]} 43. c6 {[%clk 0:00:19.1]} 43... Bxc6 {[%clk 0:00:08.8]} 44. Kc2
{[%clk 0:00:17]} 44... Kxb4 {[%clk 0:00:08.5]} 45. Rxa6 {[%clk 0:00:17.2]} 45...
Ba4+ {[%clk 0:00:07.7]} 46. Rxa4+ {[%clk 0:00:15.5]} 46... Kxa4 {[%clk
0:00:08.6]} 47. Kd1 {[%clk 0:00:15.4]} 47... h4 {[%clk 0:00:09.5]} 48. Ke2
{[%clk 0:00:15.9]} 48... h3 {[%clk 0:00:10.4]} 49. Kf2 {[%clk 0:00:15.3]} 49...
h2 {[%clk 0:00:11.3]} 50. Kg2 {[%clk 0:00:15.6]} 50... h1=Q+ {[%clk 0:00:10.6]}
51. Kxh1 {[%clk 0:00:15.4]} 51... d1=Q+ {[%clk 0:00:11.5]} 52. Kg2 {[%clk
0:00:16.3]} 52... Qe2+ {[%clk 0:00:11.8]} 53. Kh3 {[%clk 0:00:16.9]} 53... Qxf3+
{[%clk 0:00:11.7]} 54. Kh4 {[%clk 0:00:17.6]} 54... Qg3# {[%clk 0:00:11.3]} 0-1

[Event "*** SCC Grand Prix: Titled Tuesday Blitz"]
[Site "Chess.com"]
[Date "2020.06.09"]
[Round "5"]
[White "MateSchmate"]
[Black "davidkalashian"]
[Result "0-1"]
[WhiteElo "2430"]
[BlackElo "2603"]
[TimeControl "180+1"]
[EndTime "9:57:40 PDT"]
[Termination "davidkalashian won by checkmate"]

1. e4 {[%clk 0:03:00.9]} 1... c6 {[%clk 0:02:58.2]} 2. Bc4 {[%clk 0:03:00.5]}
2... g6 {[%clk 0:02:58]} 3. Bb3 {[%clk 0:03:01.4]} 3... Bg7 {[%clk 0:02:57]} 4.
Nf3 {[%clk 0:03:01.1]} 4... d6 {[%clk 0:02:56]} 5. d4 {[%clk 0:03:01]} 5... Nf6
{[%clk 0:02:54.6]} 6. Nc3 {[%clk 0:03:00.9]} 6... O-O {[%clk 0:02:53.5]} 7. h3
{[%clk 0:03:00.7]} 7... b5 {[%clk 0:02:51.8]} 8. a3 {[%clk 0:02:59.4]} 8... a5
{[%clk 0:02:51.1]} 9. Be3 {[%clk 0:02:57.5]} 9... Bb7 {[%clk 0:02:46.4]} 10. Qd2
{[%clk 0:02:52.7]} 10... b4 {[%clk 0:02:42.5]} 11. axb4 {[%clk 0:02:48.2]} 11...
axb4 {[%clk 0:02:43.4]} 12. Na4 {[%clk 0:02:36]} 12... Nxe4 {[%clk 0:02:37.3]}
13. Qxb4 {[%clk 0:02:35.6]} 13... Qa5 {[%clk 0:02:29.7]} 14. Qxa5 {[%clk
0:02:31.8]} 14... Rxa5 {[%clk 0:02:30.6]} 15. O-O {[%clk 0:02:32]} 15... Nd7
{[%clk 0:02:29.1]} 16. Nc3 {[%clk 0:02:30.9]} 16... Rxa1 {[%clk 0:02:25.8]} 17.
Rxa1 {[%clk 0:02:31.8]} 17... Nxc3 {[%clk 0:02:24.6]} 18. bxc3 {[%clk
0:02:32.7]} 18... Ra8 {[%clk 0:02:24.3]} 19. Rxa8+ {[%clk 0:02:31.4]} 19... Bxa8
{[%clk 0:02:25.2]} 20. Ng5 {[%clk 0:02:30.3]} 20... e6 {[%clk 0:02:23.2]} 21.
Nxe6 {[%clk 0:02:26.6]} 21... Nb6 {[%clk 0:02:03.5]} 22. Nc7 {[%clk 0:02:12.5]}
22... Bb7 {[%clk 0:02:01.1]} 23. Ne8 {[%clk 0:02:12.6]} 23... Bf8 {[%clk
0:01:57.5]} 24. Bf4 {[%clk 0:01:48]} 24... d5 {[%clk 0:01:49.5]} 25. Nf6+ {[%clk
0:01:47.2]} 25... Kh8 {[%clk 0:01:41.4]} 26. Bc7 {[%clk 0:01:46.2]} 26... Nc8
{[%clk 0:01:03.5]} 27. Nd7 {[%clk 0:01:38.3]} 27... Bd6 {[%clk 0:00:58.2]} 28.
Bd8 {[%clk 0:01:24.4]} 28... Ba6 {[%clk 0:00:50.2]} 29. Ba4 {[%clk 0:01:20.4]}
29... Na7 {[%clk 0:00:47.4]} 30. Bf6+ {[%clk 0:01:08.7]} 30... Kg8 {[%clk
0:00:46.6]} 31. Be5 {[%clk 0:01:08.7]} 31... Ba3 {[%clk 0:00:40]} 32. Nf6+
{[%clk 0:00:11.3]} 32... Kf8 {[%clk 0:00:36.3]} 33. Nd7+ {[%clk 0:00:11.3]}
33... Ke7 {[%clk 0:00:34.9]} 34. Nf6 {[%clk 0:00:10.4]} 34... h5 {[%clk
0:00:31.4]} 35. g4 {[%clk 0:00:08.5]} 35... hxg4 {[%clk 0:00:30.2]} 36. hxg4
{[%clk 0:00:09.4]} 36... Be2 {[%clk 0:00:27.8]} 37. g5 {[%clk 0:00:08.5]} 37...
Nb5 {[%clk 0:00:27.3]} 38. Bxb5 {[%clk 0:00:07.8]} 38... Bxb5 {[%clk 0:00:28.2]}
39. Ng8+ {[%clk 0:00:07.6]} 39... Ke6 {[%clk 0:00:27.7]} 40. Nf6 {[%clk
0:00:08.5]} 40... Ba4 {[%clk 0:00:27]} 41. f4 {[%clk 0:00:08]} 41... Bxc2 {[%clk
0:00:26.5]} 42. Kf2 {[%clk 0:00:08.9]} 42... Bb2 {[%clk 0:00:26.3]} 43. Kf3
{[%clk 0:00:05.9]} 43... Bxc3 {[%clk 0:00:26]} 44. Ne8 {[%clk 0:00:06.8]} 44...
Bd1+ {[%clk 0:00:19.7]} 45. Ke3 {[%clk 0:00:06.4]} 45... Ba5 {[%clk 0:00:20.1]}
46. Ng7+ {[%clk 0:00:05.5]} 46... Ke7 {[%clk 0:00:19.1]} 47. f5 {[%clk
0:00:05.8]} 47... Bc2 {[%clk 0:00:17.7]} 48. f6+ {[%clk 0:00:03.5]} 48... Kd7
{[%clk 0:00:17.3]} 49. Kf4 {[%clk 0:00:04.4]} 49... Bd2+ {[%clk 0:00:16.5]} 50.
Kf3 {[%clk 0:00:05.3]} 50... Bc3 {[%clk 0:00:16.7]} 51. Kg4 {[%clk 0:00:05.8]}
51... c5 {[%clk 0:00:15.4]} 52. Nh5 {[%clk 0:00:05.4]} 52... gxh5+ {[%clk
0:00:14.5]} 53. Kxh5 {[%clk 0:00:05.6]} 53... Bg6+ {[%clk 0:00:15.1]} 54. Kh6
{[%clk 0:00:05.2]} 54... Bxd4 {[%clk 0:00:16]} 55. Bf4 {[%clk 0:00:05.8]} 55...
c4 {[%clk 0:00:15.9]} 56. Kg7 {[%clk 0:00:06.7]} 56... c3 {[%clk 0:00:16]} 57.
Bc1 {[%clk 0:00:07]} 57... c2 {[%clk 0:00:16.1]} 58. Kf8 {[%clk 0:00:07.9]}
58... Bc5+ {[%clk 0:00:15.9]} 59. Kg7 {[%clk 0:00:05.5]} 59... d4 {[%clk
0:00:16.2]} 60. Ba3 {[%clk 0:00:05.6]} 60... Bxa3 {[%clk 0:00:15.6]} 61. Kh6
{[%clk 0:00:04.6]} 61... Bf8# {[%clk 0:00:14.5]} 0-1

[Event "*** SCC Grand Prix: Titled Tuesday Blitz"]
[Site "Chess.com"]
[Date "2020.06.09"]
[Round "5"]
[White "PetrolulSah"]
[Black "trriinu"]
[Result "0-1"]
[WhiteElo "2246"]
[BlackElo "2022"]
[TimeControl "180+1"]
[EndTime "9:57:42 PDT"]
[Termination "trriinu won by checkmate"]

1. d4 {[%clk 0:03:00.9]} 1... g6 {[%clk 0:02:58.6]} 2. e4 {[%clk 0:03:00.2]}
2... Bg7 {[%clk 0:02:57.5]} 3. c4 {[%clk 0:03:00]} 3... c5 {[%clk 0:02:57.3]} 4.
d5 {[%clk 0:02:59]} 4... d6 {[%clk 0:02:57.3]} 5. Nc3 {[%clk 0:02:58.9]} 5...
Nf6 {[%clk 0:02:56.8]} 6. f4 {[%clk 0:02:55.4]} 6... Nbd7 {[%clk 0:02:43.6]} 7.
Nf3 {[%clk 0:02:54.6]} 7... Qc7 {[%clk 0:02:30.1]} 8. Bd3 {[%clk 0:02:46.1]}
8... a6 {[%clk 0:02:27.5]} 9. O-O {[%clk 0:02:46.1]} 9... O-O {[%clk 0:02:27.4]}
10. a4 {[%clk 0:02:46.1]} 10... e5 {[%clk 0:02:19.9]} 11. fxe5 {[%clk
0:02:38.2]} 11... Nxe5 {[%clk 0:02:19.7]} 12. Nxe5 {[%clk 0:02:37.7]} 12... dxe5
{[%clk 0:02:19.8]} 13. Bg5 {[%clk 0:02:32.5]} 13... Ne8 {[%clk 0:02:00.7]} 14.
Qd2 {[%clk 0:02:30.8]} 14... Nd6 {[%clk 0:01:58.2]} 15. Bf6 {[%clk 0:02:18.6]}
15... Ne8 {[%clk 0:01:36.5]} 16. Bg5 {[%clk 0:02:18.4]} 16... Qd6 {[%clk
0:01:25]} 17. Rf2 {[%clk 0:02:10.5]} 17... Bd7 {[%clk 0:01:09.9]} 18. Raf1
{[%clk 0:02:09.2]} 18... Rb8 {[%clk 0:00:59.6]} 19. h4 {[%clk 0:01:59.9]} 19...
f6 {[%clk 0:00:52.6]} 20. Bh6 {[%clk 0:01:59.1]} 20... Rf7 {[%clk 0:00:52.7]}
21. Bxg7 {[%clk 0:01:54.1]} 21... Nxg7 {[%clk 0:00:51.5]} 22. Qh6 {[%clk
0:01:50.5]} 22... Rbf8 {[%clk 0:00:46.7]} 23. a5 {[%clk 0:01:46.7]} 23... Qc7
{[%clk 0:00:38.1]} 24. Ne2 {[%clk 0:01:25.6]} 24... Nh5 {[%clk 0:00:32.9]} 25.
Qd2 {[%clk 0:01:18.7]} 25... Bg4 {[%clk 0:00:31.3]} 26. b4 {[%clk 0:01:16.6]}
26... cxb4 {[%clk 0:00:24.6]} 27. Qxb4 {[%clk 0:01:15.3]} 27... Bxe2 {[%clk
0:00:23.8]} 28. Bxe2 {[%clk 0:01:13.5]} 28... Nf4 {[%clk 0:00:23.8]} 29. c5
{[%clk 0:01:07.5]} 29... Rc8 {[%clk 0:00:19.6]} 30. Rc1 {[%clk 0:01:05.8]} 30...
Qd7 {[%clk 0:00:15.7]} 31. Qb6 {[%clk 0:00:58.9]} 31... f5 {[%clk 0:00:14.6]}
32. c6 {[%clk 0:00:54.4]} 32... bxc6 {[%clk 0:00:14.1]} 33. dxc6 {[%clk
0:00:54.4]} 33... Qd2 {[%clk 0:00:14]} 34. Re1 {[%clk 0:00:43.9]} 34... Qxe1+
{[%clk 0:00:13.7]} 35. Bf1 {[%clk 0:00:42.2]} 35... Nd3 {[%clk 0:00:11.5]} 36.
Rc2 {[%clk 0:00:36]} 36... fxe4 {[%clk 0:00:11.4]} 37. Kh2 {[%clk 0:00:22.4]}
37... Qxf1 {[%clk 0:00:09.9]} 38. Qxa6 {[%clk 0:00:17.9]} 38... Qf4+ {[%clk
0:00:09.5]} 39. Kh3 {[%clk 0:00:17.2]} 39... Qf5+ {[%clk 0:00:08.4]} 40. Kh2
{[%clk 0:00:16.7]} 40... Ne1 {[%clk 0:00:08.2]} 41. Qxc8+ {[%clk 0:00:15.2]}
41... Qxc8 {[%clk 0:00:07.8]} 42. Re2 {[%clk 0:00:15.2]} 42... Nd3 {[%clk
0:00:07.7]} 43. Rxe4 {[%clk 0:00:14.7]} 43... Qxc6 {[%clk 0:00:08]} 44. Re3
{[%clk 0:00:14.2]} 44... e4 {[%clk 0:00:07.9]} 45. h5 {[%clk 0:00:13.6]} 45...
Qd6+ {[%clk 0:00:08.3]} 46. Rg3 {[%clk 0:00:13]} 46... Rf4 {[%clk 0:00:07.9]}
47. Kh3 {[%clk 0:00:11.7]} 47... Rf6 {[%clk 0:00:07.6]} 48. hxg6 {[%clk
0:00:10.4]} 48... hxg6 {[%clk 0:00:07.7]} 49. a6 {[%clk 0:00:09.7]} 49... Qxa6
{[%clk 0:00:07.5]} 50. Kh4 {[%clk 0:00:08.4]} 50... Kg7 {[%clk 0:00:07.7]} 51.
Kh3 {[%clk 0:00:08]} 51... Qb5 {[%clk 0:00:08]} 52. Rg4 {[%clk 0:00:07.9]} 52...
Qh5+ {[%clk 0:00:08.4]} 53. Rh4 {[%clk 0:00:07.5]} 53... Nf2+ {[%clk 0:00:08.2]}
54. Kg3 {[%clk 0:00:07.4]} 54... Qg5+ {[%clk 0:00:07.6]} 55. Kh2 {[%clk
0:00:06]} 55... Qxh4+ {[%clk 0:00:08]} 56. Kg1 {[%clk 0:00:06.7]} 56... Qh1#
{[%clk 0:00:08.3]} 0-1